fUSD/lending_fUSD_20251228
["ID","MTS","AMOUNT","RATE_DAILY","PERIOD"]
[399959162,1766944243937,-150.0,0.00016003,2]
[399959163,1766944243947,-150.0,0.00016004,2]
[399959164,1766944243956,-150.0,0.0001601,2]
[399959165,1766944243966,-150.0,0.00016016,2]
[399959166,1766944243976,-250.0,0.00016021,2]
[399959167,1766944243985,-150.0,0.00016021,2]
[399959168,1766944243994,-150.0,0.00016024,2]
[399959169,1766944244004,-150.0,0.00016031,2]
[399959170,1766944244013,-150.0,0.00016038,2]
[399959171,1766944244022,-150.0,0.0001604,2]
[399959172,1766944244032,-150.0,0.0001604,2]
[399959173,1766944244042,-16382.67340951,0.00016046,2]
[399959174,1766944244051,-10859.88268418,0.00016046,2]
[399959175,1766944244061,-150.0,0.00016047,2]
[399959176,1766944244072,-150.0,0.00016048,2]
[399959177,1766944244081,-1169.99,0.00016056,2]
[399959178,1766944244091,-150.0,0.00016057,2]
[399959179,1766944244101,-150.0,0.0001606,2]
[399959180,1766944244110,-150.0,0.00016064,2]
[399959181,1766944244120,-150.0,0.00016072,2]
[399959182,1766944244130,-150.0,0.00016078,2]
[399959183,1766944244142,-150.0,0.00016079,2]
[399959184,1766944244151,-150.0,0.0001608,2]
[399959185,1766944244161,-150.0,0.00016083,2]
[399959186,1766944244170,-150.0,0.00016084,2]
[399959187,1766944244180,-150.0,0.00016088,2]
[399959188,1766944244192,-150.0,0.00016092,2]
[399959189,1766944244202,-150.0,0.00016098,2]
[399959190,1766944244211,-150.0,0.0001611,2]
[399959191,1766944244221,-150.0,0.00016113,2]
[399959192,1766944244231,-150.0,0.00016117,2]
[399959193,1766944244241,-150.0,0.00016118,2]
[399959194,1766944244252,-150.0,0.00016119,2]
[399959195,1766944244264,-150.0,0.00016137,2]
[399959196,1766944244273,-150.0,0.00016137,2]
[399959197,1766944244283,-150.0,0.00016137,2]
[399959198,1766944244293,-150.0,0.00016137,2]
[399959199,1766944244302,-150.0,0.00016137,2]
[399959200,1766944244312,-150.0,0.00016137,2]
[399959201,1766944244322,-150.0,0.00016137,2]
[399959202,1766944244332,-150.0,0.00016137,2]
[399959203,1766944244342,-1667.0,0.00016149,2]
[399959204,1766944244352,-580.24678196,0.00016149,2]
[399959205,1766944244363,-1316.0389403,0.00016149,2]
[399959206,1766944244372,-322.6107,0.00016149,2]
[399959207,1766944244382,-200.0,0.00016149,2]
[399959208,1766944244392,-1000.0,0.00016149,2]
[399959209,1766944244402,-207.4,0.00016149,2]
[399959210,1766944244411,-1000.0,0.00016149,2]
[399959211,1766944244421,-215.0738,0.00016149,2]
[399959212,1766944244432,-500.0,0.00016149,2]
[399959213,1766944244442,-500.0,0.00016149,2]
[399959214,1766944244452,-223.0315306,0.00016149,2]
[399959215,1766944244461,-500.0,0.00016149,2]
[399959216,1766944244471,-231.28369723,0.00016149,2]
[399959217,1766944244481,-500.0,0.00016149,2]
[399959218,1766944244490,-239.84119403,0.00016149,2]
[399959219,1766944244500,-500.0,0.00016149,2]
[399959220,1766944244509,-248.71531821,0.00016149,2]
[399959221,1766944244519,-257.91778498,0.00016149,2]
[399959222,1766944244529,-405.15229211,0.00016149,2]
[399959223,1766944244539,-500.0,0.00016149,2]
[399959224,1766944244548,-500.0,0.00016149,2]
[399959225,1766944244558,-500.0,0.00016149,2]
[399959226,1766944244567,-500.0,0.00016149,2]
[399959227,1766944244577,-500.0,0.00016149,2]
[399959228,1766944244587,-250.0,0.00016149,2]
[399959229,1766944244597,-500.0,0.00016149,2]
[399959230,1766944244607,-250.0,0.00016149,2]
[399959231,1766944244616,-500.0,0.00016149,2]
[399959232,1766944244626,-500.0,0.00016149,2]
[399959233,1766944244635,-500.0,0.00016149,2]
[399959234,1766944244644,-250.0,0.00016149,2]
[399959235,1766944244653,-500.0,0.00016149,2]
[399959236,1766944244663,-500.0,0.00016149,2]
[399959237,1766944244672,-250.0,0.00016149,2]
[399959238,1766944244680,-500.0,0.00016149,2]
[399959239,1766944244690,-500.0,0.00016149,2]
[399959240,1766944244701,-250.0,0.00016149,2]
[399959241,1766944244711,-500.0,0.00016149,2]
[399959242,1766944244723,-500.0,0.00016149,2]
[399959243,1766944244733,-250.0,0.00016149,2]
[399959244,1766944244743,-500.0,0.00016149,2]
[399959245,1766944244753,-284.76184806,0.00016149,2]
[399959246,1766944244763,-500.0,0.00016149,2]
[399959247,1766944244773,-250.0,0.00016149,2]
[399959248,1766944244784,-500.0,0.00016149,2]
[399959249,1766944244795,-500.0,0.00016149,2]
[399959250,1766944244805,-259.6625457,0.00016149,2]
[399959251,1766944244815,-250.0,0.00016149,2]
[399959252,1766944244824,-250.0,0.00016149,2]
[399959253,1766944244834,-250.0,0.00016149,2]
[399959254,1766944244856,-250.0,0.00016149,2]
[399959255,1766944244867,-500.0,0.00016149,2]
[399959256,1766944244877,-500.0,0.00016149,2]
[399959257,1766944244887,-500.0,0.00016149,2]
[399959258,1766944244898,-282.13607366,0.00016149,2]
[399959259,1766944244907,-500.0,0.00016149,2]
[399959260,1766944244917,-320.1146403,0.00016149,2]
[399959261,1766944244927,-150.0,0.00016155,2]
[399959262,1766944244937,-150.0,0.00016156,2]
[399959263,1766944244948,-150.0,0.00016157,2]
[399959264,1766944244958,-150.0,0.00016161,2]
[399959265,1766944244968,-150.0,0.00016164,2]
[399959266,1766944244977,-321.20298697,0.00016168,2]
[399959267,1766944244987,-1667.0,0.0001617,2]
[399959268,1766944244996,-150.0,0.00016176,2]
[399959269,1766944245006,-150.0,0.00016182,2]
[399959270,1766944245016,-150.0,0.00016186,2]
[399959271,1766944245026,-150.0,0.0001619,2]
[399959272,1766944245035,-150.0,0.00016191,2]
[399959273,1766944245045,-150.0,0.00016194,2]
[399959274,1766944245055,-150.0,0.00016195,2]
[399959275,1766944245065,-150.0,0.00016196,2]
[399959276,1766944245074,-150.0,0.00016202,2]
[399959277,1766944245085,-150.0,0.0001621,2]
[399959278,1766944245095,-150.0,0.00016214,2]
[399959279,1766944245105,-1500.0,0.00016216,2]
[399959280,1766944245114,-150.0,0.00016217,2]
[399959281,1766944245124,-1667.0,0.00016217,2]
[399959282,1766944245134,-150.0,0.00016226,2]
[399959283,1766944245144,-150.0,0.00016227,2]
[399959284,1766944245153,-150.0,0.00016233,2]
[399959285,1766944245163,-150.0,0.00016234,2]
[399959286,1766944245173,-150.0,0.00016236,2]
[399959287,1766944245183,-150.0,0.00016243,2]
[399959288,1766944245192,-150.0,0.0001625,2]
[399959289,1766944245202,-150.0,0.00016253,2]
[399959290,1766944245211,-150.0,0.00016258,2]
[399959291,1766944245222,-150.0,0.00016263,2]
[399959292,1766944245232,-150.0,0.0001627,2]
[399959293,1766944245243,-150.0,0.00016271,2]
[399959294,1766944245253,-150.0,0.00016272,2]
[399959295,1766944245262,-1667.0,0.00016275,2]
[399959296,1766944245271,-150.0,0.00016275,2]
[399959297,1766944245281,-151.0,0.00016278,2]
[399959298,1766944245291,-151.0,0.00016278,2]
[399959299,1766944245301,-150.0,0.00016279,2]
[399959300,1766944245311,-150.0,0.00016283,2]
[399959301,1766944245320,-150.0,0.00016291,2]
[399959302,1766944245331,-150.0,0.00016296,2]
[399959303,1766944245342,-150.0,0.000163,2]
[399959304,1766944245351,-150.0,0.00016307,2]
[399959305,1766944245362,-150.0,0.00016307,2]
[399959306,1766944245372,-150.0,0.00016307,2]
[399959307,1766944245383,-150.0,0.00016307,2]
[399959308,1766944245393,-150.0,0.00016311,2]
[399959309,1766944245403,-150.0,0.00016315,2]
[399959310,1766944245412,-150.0,0.00016316,2]
[399959311,1766944245422,-150.0,0.00016323,2]
[399959312,1766944245433,-1170.01830604,0.0001633,2]
[399959313,1766944245443,-150.0,0.0001633,2]
[399959314,1766944245454,-16382.67340951,0.0001633,2]
[399959315,1766944245464,-10859.88268418,0.0001633,2]
[399959316,1766944245475,-150.0,0.00016331,2]
[399959317,1766944245485,-150.0,0.00016333,2]
[399959318,1766944245495,-150.0,0.00016336,2]
[399959319,1766944245504,-174.74135252,0.00016338,2]
[399959320,1766944245514,-150.0,0.00016349,2]
[399959321,1766944245524,-150.0,0.00016349,2]
[399959322,1766944245534,-150.0,0.00016354,2]
[399959323,1766944245544,-150.0,0.00016355,2]
[399959324,1766944245553,-150.0,0.0001636,2]
[399959327,1766944245564,-150.0,0.00016363,2]
[399959329,1766944245574,-150.0,0.00016369,2]
[399959331,1766944245584,-1667.0,0.0001637,2]
[399959332,1766944245593,-1667.0,0.00016371,2]
[399959333,1766944245603,-150.0,0.00016372,2]
[399959334,1766944245612,-150.0,0.00016376,2]
[399959335,1766944245622,-2173.0,0.00016379,2]
[399959336,1766944245632,-150.0,0.0001638,2]
[399959337,1766944245642,-150.0,0.00016388,2]
[399959338,1766944245653,-150.0,0.00016394,2]
[399959339,1766944245663,-150.0,0.00016402,2]
[399959340,1766944245673,-150.0,0.00016404,2]
[399959341,1766944245684,-150.0,0.00016405,2]
[399959342,1766944245693,-150.0,0.00016407,2]
[399959343,1766944245706,-150.0,0.00016408,2]
[399959344,1766944245717,-150.0,0.0001642,2]
[399959345,1766944245727,-150.0,0.0001642,2]
[399959346,1766944245739,-150.0,0.0001642,2]
[399959347,1766944245749,-150.0,0.00016427,2]
[399959348,1766944245760,-150.0,0.00016428,2]
[399959349,1766944245770,-150.0,0.00016429,2]
[399959350,1766944245781,-150.0,0.00016433,2]
[399959351,1766944245791,-646.48024776,0.00016437,2]
[399959352,1766944245800,-625.38854528,0.00016438,2]
[399959353,1766944245809,-625.38854528,0.00016438,2]
[399959354,1766944245819,-625.38854528,0.00016438,2]
[399959355,1766944245828,-625.38854528,0.00016438,2]
[399959356,1766944245837,-625.38854528,0.00016438,2]
[399959357,1766944245847,-625.38854528,0.00016438,2]
[399959358,1766944245856,-625.38854528,0.00016438,2]
[399959359,1766944245865,-625.38854528,0.00016438,2]
[399959360,1766944245875,-625.38854528,0.00016438,2]
[399959361,1766944245885,-625.38854528,0.00016438,2]
[399959362,1766944245894,-625.38854528,0.00016438,2]
[399959363,1766944245903,-625.38854528,0.00016438,2]
[399959364,1766944245913,-625.38854528,0.00016438,2]
[399959365,1766944245922,-625.38854528,0.00016438,2]
[399959366,1766944245932,-625.38854528,0.00016438,2]
[399959367,1766944245942,-625.38854528,0.00016438,2]
[399959368,1766944245951,-625.38854528,0.00016438,2]
[399959369,1766944245961,-625.38854528,0.00016438,2]
[399959370,1766944245971,-625.38854528,0.00016438,2]
[399959371,1766944245981,-625.38854528,0.00016438,2]
[399959373,1766944245991,-625.38854528,0.00016438,2]
[399959374,1766944246000,-625.38854528,0.00016438,2]
[399959375,1766944246009,-625.38854528,0.00016438,2]
[399959376,1766944246020,-625.38854528,0.00016438,2]
[399959377,1766944246029,-625.38854528,0.00016438,2]
[399959378,1766944246039,-625.38854528,0.00016438,2]
[399959379,1766944246049,-625.38854528,0.00016438,2]
[399959380,1766944246058,-625.38854528,0.00016438,2]
[399959381,1766944246067,-625.38854528,0.00016438,2]
[399959382,1766944246077,-625.38854528,0.00016438,2]
[399959383,1766944246086,-625.38854528,0.00016438,2]
[399959385,1766944246096,-625.38854528,0.00016438,2]
[399959387,1766944246105,-625.38854528,0.00016438,2]
[399959389,1766944246115,-625.38854528,0.00016438,2]
[399959390,1766944246124,-625.38854528,0.00016438,2]
[399959391,1766944246135,-625.38854528,0.00016438,2]
[399959392,1766944246147,-625.38854528,0.00016438,2]
[399959393,1766944246158,-625.38854528,0.00016438,2]
[399959394,1766944246170,-625.38854528,0.00016438,2]
[399959395,1766944246179,-625.38854528,0.00016438,2]
[399959396,1766944246189,-625.38854528,0.00016438,2]
[399959397,1766944246199,-625.38854528,0.00016438,2]
[399959398,1766944246210,-625.38854528,0.00016438,2]
[399959399,1766944246220,-625.38854528,0.00016438,2]
[399959400,1766944246231,-625.38854528,0.00016438,2]
[399959401,1766944246240,-625.38854528,0.00016438,2]
[399959402,1766944246251,-625.38854528,0.00016438,2]
[399959403,1766944246261,-625.38854528,0.00016438,2]
[399959404,1766944246271,-625.38854528,0.00016438,2]
[399959405,1766944246282,-625.38854528,0.00016438,2]
[399959406,1766944246292,-625.38854528,0.00016438,2]
[399959407,1766944246301,-625.38854528,0.00016438,2]
[399959408,1766944246311,-625.38854528,0.00016438,2]
[399959409,1766944246321,-625.38854528,0.00016438,2]
[399959410,1766944246332,-625.38854528,0.00016438,2]
[399959411,1766944246342,-612.51289875,0.00016438,2]
[399959412,1766944246352,-612.51289875,0.00016438,2]
[399959413,1766944246363,-612.51289875,0.00016438,2]
[399959414,1766944246373,-612.51289875,0.00016438,2]
[399959415,1766944246382,-612.51289875,0.00016438,2]
[399959416,1766944246392,-612.51289875,0.00016438,2]
[399959417,1766944246401,-612.51289875,0.00016438,2]
[399959418,1766944246411,-612.51289875,0.00016438,2]
[399959419,1766944246421,-612.51289875,0.00016438,2]
[399959420,1766944246432,-612.51289875,0.00016438,2]
[399959421,1766944246443,-612.51289875,0.00016438,2]
[399959422,1766944246453,-612.51289875,0.00016438,2]
[399959423,1766944246463,-612.51289875,0.00016438,2]
[399959424,1766944246472,-612.51289875,0.00016438,2]
[399959425,1766944246483,-612.51289875,0.00016438,2]
[399959426,1766944246493,-612.51289875,0.00016438,2]
[399959427,1766944246502,-612.51289875,0.00016438,2]
[399959428,1766944246512,-612.51289875,0.00016438,2]
[399959429,1766944246522,-612.51289875,0.00016438,2]
[399959430,1766944246533,-612.51289875,0.00016438,2]
[399959431,1766944246544,-612.51289875,0.00016438,2]
[399959432,1766944246553,-612.51289875,0.00016438,2]
[399959433,1766944246745,-612.51289875,0.00016438,2]
[399959434,1766944246756,-612.51289875,0.00016438,2]
[399959435,1766944246765,-612.51289875,0.00016438,2]
[399959436,1766944246776,-612.51289875,0.00016438,2]
[399959437,1766944246788,-612.51289875,0.00016438,2]
[399959438,1766944246798,-612.51289875,0.00016438,2]
[399959439,1766944246808,-612.51289875,0.00016438,2]
[399959440,1766944246819,-612.51289875,0.00016438,2]
[399959441,1766944246830,-612.51289875,0.00016438,2]
[399959442,1766944246840,-612.51289875,0.00016438,2]
[399959443,1766944246850,-612.51289875,0.00016438,2]
[399959444,1766944246859,-612.51289866,0.00016438,2]
[399959445,1766944246870,-500.0,0.00016438,2]
[399959446,1766944246880,-150.0,0.00016444,2]
[399959447,1766944246891,-150.0,0.00016446,2]
[399959448,1766944246902,-150.0,0.0001645,2]
[399959449,1766944246916,-150.0,0.00016452,2]
[399959450,1766944246926,-150.0,0.00016455,2]
[399959451,1766944246936,-150.0,0.00016464,2]
[399959452,1766944246947,-150.0,0.00016465,2]
[399959453,1766944246957,-515.48135853,0.00016465,2]
[399959454,1766944246967,-152.09829773,0.00016466,2]
[399959455,1766944246976,-150.0,0.00016473,2]
[399959456,1766944246988,-150.0,0.00016477,2]
[399959457,1766944246997,-150.0,0.00016477,2]
[399959458,1766944247007,-150.0,0.00016477,2]
[399959459,1766944247016,-150.0,0.0001648,2]
[399959460,1766944247026,-150.0,0.00016482,2]
[399959461,1766944247039,-150.0,0.00016484,2]
[399959462,1766944247050,-150.0,0.00016495,2]
[399959463,1766944247059,-150.0,0.00016501,2]
[399959464,1766944247069,-150.0,0.00016504,2]
[399959465,1766944247080,-150.0,0.00016509,2]
[399959466,1766944247094,-150.0,0.00016512,2]
[399959467,1766944247105,-1667.0,0.00016516,2]
[399959468,1766944247115,-150.0,0.00016516,2]
[399959469,1766944247126,-1000.0,0.00016521,2]
[399959470,1766944247136,-150.0,0.00016523,2]
[399959471,1766944247146,-150.0,0.00016525,2]
[399959472,1766944247156,-150.0,0.00016533,2]
[399959473,1766944247166,-321.20298697,0.00016534,2]
[399959474,1766944247177,-150.0,0.00016535,2]
[399959475,1766944247188,-150.0,0.00016539,2]
[399959476,1766944247200,-150.0,0.00016542,2]
[399959477,1766944247210,-150.0,0.0001655,2]
[399959478,1766944247219,-150.0,0.00016552,2]
[399959479,1766944247229,-150.0,0.00016553,2]
[399959480,1766944247239,-150.0,0.00016562,2]
[399959481,1766944247249,-150.0,0.00016562,2]
[399959482,1766944247260,-150.0,0.00016562,2]
[399959483,1766944247270,-150.0,0.00016574,2]
[399959484,1766944247282,-150.0,0.00016581,2]
[399959485,1766944247292,-150.0,0.00016584,2]
[399959486,1766944247303,-150.0,0.00016588,2]
[399959487,1766944247312,-150.0,0.00016589,2]
[399959488,1766944247325,-150.0,0.0001659,2]
[399959489,1766944247334,-150.0,0.00016591,2]
[399959490,1766944247345,-150.0,0.00016594,2]
[399959491,1766944247355,-1740.9,0.00016595,2]
[399959492,1766944247364,-150.0,0.00016598,2]
[399959493,1766944247374,-150.0,0.000166,2]
[399959494,1766944247385,-212.82,0.0001661,2]
[399959495,1766944247396,-150.0,0.00016615,2]
[399959496,1766944247407,-16382.67340951,0.00016615,2]
[399959497,1766944247417,-150.0,0.0001662,2]
[399959498,1766944247426,-150.0,0.00016622,2]
[399959499,1766944247437,-150.0,0.00016625,2]
[399959500,1766944247448,-150.0,0.00016629,2]
[399959501,1766944247459,-150.0,0.00016631,2]
[399959502,1766944247470,-150.0,0.00016639,2]
[399959503,1766944247481,-150.0,0.00016641,2]
[399959504,1766944247492,-168.0,0.00016646,2]
[399959505,1766944247504,-150.0,0.00016647,2]
[399959506,1766944247514,-150.0,0.00016647,2]
[399959507,1766944247523,-150.0,0.00016647,2]
[399959508,1766944247533,-150.0,0.00016647,2]
[399959509,1766944247543,-2173.0,0.00016648,2]
[399959510,1766944247554,-150.0,0.00016658,2]
[399959511,1766944247564,-701.51607429,0.0001666,2]
[399959512,1766944247575,-150.0,0.00016661,2]
[399959513,1766944247586,-150.0,0.00016668,2]
[399959514,1766944247600,-150.0,0.0001667,2]
[399959515,1766944247612,-150.0,0.00016671,2]
[399959516,1766944247622,-150.0,0.00016673,2]
[399959517,1766944247632,-150.0,0.00016677,2]
[399959518,1766944247642,-150.0,0.00016694,2]
[399959519,1766944247651,-150.0,0.00016695,2]
[399959520,1766944247660,-150.0,0.00016697,2]
[399959521,1766944247670,-150.0,0.00016697,2]
[399959522,1766944247680,-150.0,0.00016703,2]
[399959523,1766944247690,-150.0,0.00016703,2]
[399959524,1766944247699,-150.0,0.0001671,2]
[399959525,1766944247711,-150.0,0.00016716,2]
[399959526,1766944247722,-150.0,0.00016718,2]
[399959527,1766944247731,-150.0,0.00016719,2]
[399959528,1766944247741,-150.0,0.00016721,2]
[399959529,1766944247750,-150.0,0.00016725,2]
[399959530,1766944247760,-150.0,0.00016733,2]
[399959531,1766944247770,-150.0,0.00016735,2]
[399959532,1766944247780,-150.0,0.00016744,2]
[399959533,1766944247791,-150.0,0.00016747,2]
[399959534,1766944247799,-150.0,0.00016749,2]
[399959535,1766944247809,-181.608,0.00016754,2]
[399959536,1766944247818,-1756.21,0.00016754,2]
[399959537,1766944247827,-150.0,0.00016755,2]
[399959538,1766944247838,-150.0,0.0001676,2]
[399959539,1766944247848,-150.0,0.00016763,2]
[399959540,1766944247859,-150.0,0.00016768,2]
[399959541,1766944247869,-150.0,0.00016769,2]
[399959542,1766944247878,-150.0,0.00016774,2]
[399959543,1766944247887,-150.0,0.00016774,2]
[399959544,1766944247897,-150.0,0.00016789,2]
[399959545,1766944247908,-150.0,0.00016792,2]
[399959546,1766944247917,-150.0,0.00016793,2]
[399959547,1766944247927,-150.0,0.00016801,2]
[399959548,1766944247936,-150.0,0.00016806,2]
[399959549,1766944247948,-150.0,0.00016807,2]
[399959550,1766944247958,-150.0,0.00016813,2]
[399959551,1766944247969,-150.0,0.00016816,2]
[399959552,1766944247999,-150.0,0.00016816,2]
[399959553,1766944248009,-150.0,0.00016816,2]
[399959554,1766944248018,-150.0,0.00016827,2]
[399959555,1766944248027,-150.0,0.00016828,2]
[399959556,1766944248037,-150.0,0.00016832,2]
[399959557,1766944248046,-150.0,0.00016841,2]
[399959558,1766944248056,-150.0,0.00016842,2]
[399959559,1766944248065,-150.0,0.00016845,2]
[399959560,1766944248074,-150.0,0.00016851,2]
[399959561,1766944248084,-150.0,0.00016852,2]
[399959562,1766944248094,-2173.0,0.00016853,2]
[399959563,1766944248103,-150.0,0.00016854,2]
[399959564,1766944248113,-150.0,0.00016856,2]
[399959565,1766944248123,-150.0,0.00016865,2]
[399959566,1766944248132,-150.0,0.00016868,2]
[399959567,1766944248142,-150.0,0.0001687,2]
[399959568,1766944248151,-150.0,0.00016873,2]
[399959569,1766944248161,-150.0,0.00016878,2]
[399959570,1766944248170,-150.0,0.0001688,2]
[399959571,1766944248179,-150.0,0.00016889,2]
[399959572,1766944248189,-150.0,0.0001689,2]
[399959573,1766944248201,-150.0,0.00016897,2]
[399959574,1766944248210,-29918.8137,0.000169,2]
[399959575,1766944248220,-170.57013521,0.000169,2]
[399959576,1766944248230,-16382.67340951,0.000169,2]
[399959577,1766944248239,-321.20298697,0.000169,2]
[399959578,1766944248249,-405.16201081,0.000169,2]
[399959579,1766944248259,-352.50332532,0.000169,2]
[399959580,1766944248270,-322.03359741,0.000169,2]
[399959581,1766944248281,-526.62278413,0.000169,2]
[399959582,1766944248294,-171.6502218,0.000169,2]
[399959583,1766944248304,-3537.0,0.000169,2]
[399959584,1766944248314,-150.0,0.00016907,2]
[399959585,1766944248323,-150.0,0.00016907,2]
[399959586,1766944248333,-150.0,0.00016909,2]
[399959587,1766944248343,-150.0,0.00016914,2]
[399959588,1766944248353,-150.0,0.00016914,2]
[399959589,1766944248362,-150.0,0.00016928,2]
[399959590,1766944248373,-150.0,0.0001693,2]
[399959591,1766944248383,-150.0,0.00016933,2]
[399959592,1766944248392,-150.0,0.00016938,2]
[399959593,1766944248403,-150.0,0.00016942,2]
[399959594,1766944248414,-150.0,0.00016947,2]
[399959595,1766944248423,-150.0,0.00016948,2]
[399959596,1766944248434,-150.0,0.0001695,2]
[399959597,1766944248443,-150.0,0.0001696,2]
[399959598,1766944248454,-150.0,0.00016962,2]
[399959599,1766944248463,-150.0,0.00016967,2]
[399959600,1766944248472,-150.0,0.00016973,2]
[399959601,1766944248483,-150.0,0.00016973,2]
[399959602,1766944248495,-291.19227716,0.00016986,2]
[399959603,1766944248505,-261.52919059,0.00016986,2]
[399959604,1766944248514,-193.20504799,0.00016986,2]
[399959605,1766944248523,-257.38593742,0.00016986,2]
[399959606,1766944248533,-191.18737209,0.00016986,2]
[399959607,1766944248542,-159.10391865,0.00016986,2]
[399959608,1766944248552,-288.29142727,0.00016986,2]
[399959609,1766944248562,-204.47837642,0.00016986,2]
[399959610,1766944248572,-157.03567619,0.00016986,2]
[399959611,1766944248581,-298.68946488,0.00016986,2]
[399959612,1766944248591,-156.10987043,0.00016986,2]
[399959613,1766944248600,-273.23141721,0.00016986,2]
[399959614,1766944248610,-266.31997745,0.00016986,2]
[399959615,1766944248620,-444.495915,0.00016998,2]
[399959616,1766944248630,-234901.2160469,0.00016998,2]
[399959617,1766944248640,-50747.1378486,0.00016998,2]
[399959618,1766944248650,-1640.6120865,0.00016998,2]
[399959619,1766944248660,-1142.8563376,0.00016998,2]
[399959620,1766944248669,-9687.8104855,0.00016998,2]
[399959621,1766944248680,-52757.9811978,0.00016998,2]
[399959622,1766944248689,-1109.1708325,0.00016999,5]
[399959623,1766944248701,-1109.1708325,0.00016999,5]
[399959624,1766944248713,-1109.17083252,0.00016999,5]
[399959625,1766944248722,-300.0,0.00016999,2]
[399959626,1766944248732,-300.0,0.00016999,2]
[399959627,1766944248742,-300.0,0.00016999,2]
[399959628,1766944248753,-300.0,0.00016999,2]
[399959629,1766944248763,-666.0,0.00016999,2]
[399959630,1766944248775,-300.0,0.00016999,2]
[399959631,1766944248785,-300.0,0.00016999,2]
[399959632,1766944248795,-300.0,0.00016999,2]
[399959633,1766944248804,-300.0,0.00016999,2]
[399959634,1766944248814,-311766.65939385,0.00017,2]
[399959635,1766944248823,-858904.44478369,0.00017,2]
[399959636,1766944248973,-3870.39857872,0.00016615,2]
[399959637,1766944249211,-1016.0235754,0.00016615,2]
[399959638,1766944249223,-5973.46053006,0.00016615,2]
[399959639,1766944249232,-126378.42460309,0.00017,2]
[399959640,1766944249245,-288468.78429057,0.00017,2]
[399959641,1766944249409,-542.82391399,0.000169,2]
[399959642,1766944249422,-10317.05877019,0.000169,2]
[399959643,1766944249432,-124522.92698036,0.00017,2]
[399959644,1766944249586,-644208.22150619,0.00017,2]
[399959645,1766944249603,-252866.25525496,0.00017,2]
[399959646,1766944249620,-104001.97488092,0.00017,2]
[399959647,1766944261115,264.29,0.00030137,120]
[399959648,1766944266178,-2409.544034,0.00030133,30]
[399959649,1766944266203,-1000.0,0.00030135,30]
[399959650,1766944266227,-151.02698089,0.00030136,60]
[399959651,1766944266250,-317.87797459,0.00030136,30]
[399959652,1766944357766,351.03,0.00030137,120]
[399959657,1766944380537,1109.1708325,0.0001422,5]
[399959659,1766944527686,596.71284081,0.00030136,120]
[399959662,1766944852820,-338.87298926,0.00013521,2]
[399959664,1766945077861,500.0,0.00030136,120]
[399959665,1766945078088,500.0,0.00030136,120]
[399959666,1766945078315,500.0,0.00030136,120]
[399959667,1766945078545,508.8399144,0.00030136,120]
[399959670,1766945312877,1852.42,0.00013116,2]
[399959672,1766945431663,-994.12251902,0.00013521,2]
[399959673,1766945431674,-1322.76449172,0.00013521,2]
[399959674,1766945431684,-339.21760029,0.00013599,2]
[399959676,1766945431693,-641.91,0.00013699,2]
[399959677,1766945431707,-195.0,0.00013736,2]
[399959678,1766945431716,-166.66,0.00013927,2]
[399959679,1766945431726,-1200.0,0.00013944,2]
[399959680,1766945431736,-300.0,0.00013944,2]
[399959681,1766945431746,-150.0,0.00013945,2]